[Event "Titled Tuesday Blitz December 06 Early 2022"]
[White "Buksa, Nataliya"]
[Black "Gheorghiu, Calin"]
[WhiteFideId "14123622"]
[BlackFideId "1200305"]
[WhiteElo "2303"]
[BlackElo "2224"]
[Result "0-1"]
[Round "08"]
[TimeControl "180+1"]
[Date "2022.12.07"]
[WhiteClock "0:01:00"]
[BlackClock "0:00:31"]

1. d4 {[%clk 0:03:00]}  Nf6 {[%clk 0:02:58]} 2. Nc3 {[%clk 0:03:01]}  d5 {[%clk 0:02:57]} 3. Bf4 {[%clk 0:03:02]}  g6 {[%clk 0:02:54]} 4. e3 {[%clk 0:03:02]}  Bg7 {[%clk 0:02:54]} 5. h4 {[%clk 0:03:03]}  h5 {[%clk 0:02:51]} 6. Nf3 {[%clk 0:03:03]}  O-O {[%clk 0:02:51]} 7. Ne5 {[%clk 0:03:03]}  Nbd7 {[%clk 0:02:49]} 8. Be2 {[%clk 0:03:03]}  c5 {[%clk 0:02:46]} 9. Qd2 {[%clk 0:03:02]}  Ne4 {[%clk 0:02:37]} 10. Nxe4 {[%clk 0:03:02]}  dxe4 {[%clk 0:02:37]} 11. Nxd7 {[%clk 0:03:00]}  Bxd7 {[%clk 0:02:33]} 12. c3 {[%clk 0:02:59]}  cxd4 {[%clk 0:02:27]} 13. cxd4 {[%clk 0:02:59]}  Rc8 {[%clk 0:02:23]} 14. O-O {[%clk 0:03:00]}  e6 {[%clk 0:02:07]} 15. Bg5 {[%clk 0:02:58]}  Bf6 {[%clk 0:02:00]} 16. Bxf6 {[%clk 0:02:58]}  Qxf6 {[%clk 0:02:00]} 17. g3 {[%clk 0:02:59]}  Rc7 {[%clk 0:01:58]} 18. Rac1 {[%clk 0:02:58]}  Rfc8 {[%clk 0:01:59]} 19. Rxc7 {[%clk 0:02:58]}  Rxc7 {[%clk 0:01:59]} 20. Rc1 {[%clk 0:02:59]}  Qd8 {[%clk 0:01:58]} 21. Rc5 {[%clk 0:02:56]}  b6 {[%clk 0:01:54]} 22. Rc3 {[%clk 0:02:55]}  Qc8 {[%clk 0:01:51]} 23. Kg2 {[%clk 0:02:45]}  a5 {[%clk 0:01:34]} 24. Ba6 {[%clk 0:02:36]}  Qb8 {[%clk 0:01:18]} 25. d5 {[%clk 0:02:30]}  Rxc3 {[%clk 0:01:07]} 26. bxc3 {[%clk 0:02:30]}  b5 {[%clk 0:01:07]} 27. Qd4 {[%clk 0:02:24]}  exd5 {[%clk 0:01:06]} 28. Qxd5 {[%clk 0:02:22]}  Be6 {[%clk 0:00:58]} 29. Qc5 {[%clk 0:01:53]}  b4 {[%clk 0:00:44]} 30. cxb4 {[%clk 0:01:51]}  Qxb4 {[%clk 0:00:44]} 31. Qc6 {[%clk 0:01:31]}  Bxa2 {[%clk 0:00:40]} 32. Bb5 {[%clk 0:01:29]}  Be6 {[%clk 0:00:38]} 33. Qe8+ {[%clk 0:01:22]}  Kg7 {[%clk 0:00:38]} 34. Qc6 {[%clk 0:01:22]}  Bg4 {[%clk 0:00:37]} 35. Bc4 {[%clk 0:01:19]}  Bf3+ {[%clk 0:00:37]} 36. Kg1 {[%clk 0:01:10]}  Qe1+ {[%clk 0:00:33]} 37. Bf1 {[%clk 0:01:10]}  Be2 {[%clk 0:00:32]} 38. Qxe4 {[%clk 0:01:00]}  Qxf1+ {[%clk 0:00:31]} 39. Kh2 {[%clk 0:01:00]}  Qxf2+ {[%clk 0:00:31]} 40. Qg2 {[%clk 0:00:57]}  Qxg2+ {[%clk 0:00:31]} 41. Kxg2 {[%clk 0:00:58]}  a4 {[%clk 0:00:31]} 42. Kf2 {[%clk 0:00:59]}  a3 {[%clk 0:00:30]} 43. Kxe2 {[%clk 0:01:00]}  a2 {[%clk 0:00:31]} 0-1


[Site "https://www.chess.com"]

[Event "Titled Tuesday Blitz December 06 Early 2022"]
[White "Chernomordik, Pavel"]
[Black "Lakshmi C"]
[WhiteFideId "2804530"]
[BlackFideId "25035347"]
[WhiteElo "2193"]
[BlackElo "1942"]
[Result "1-0"]
[Round "08"]
[TimeControl "180+1"]
[Date "2022.12.07"]
[WhiteClock "0:02:02"]
[BlackClock "0:00:12"]

1. e4 {[%clk 0:03:00]}  c5 {[%clk 0:01:42]} 2. Nc3 {[%clk 0:02:59]}  Nc6 {[%clk 0:01:41]} 3. Bb5 {[%clk 0:02:58]}  g6 {[%clk 0:01:40]} 4. Bxc6 {[%clk 0:02:57]}  dxc6 {[%clk 0:01:40]} 5. f4 {[%clk 0:02:58]}  Bg7 {[%clk 0:01:40]} 6. Nf3 {[%clk 0:02:59]}  Nf6 {[%clk 0:01:37]} 7. O-O {[%clk 0:02:57]}  Nd7 {[%clk 0:01:34]} 8. d3 {[%clk 0:02:54]}  b6 {[%clk 0:01:32]} 9. Qe2 {[%clk 0:02:49]}  Ba6 {[%clk 0:01:28]} 10. e5 {[%clk 0:02:42]}  Nf8 {[%clk 0:01:26]} 11. Ne4 {[%clk 0:02:40]}  Qd7 {[%clk 0:01:22]} 12. Nf6+ {[%clk 0:02:32]}  Bxf6 {[%clk 0:01:22]} 13. exf6 {[%clk 0:02:31]}  Ne6 {[%clk 0:01:22]} 14. Ne5 {[%clk 0:02:29]}  Qc7 {[%clk 0:01:21]} 15. fxe7 {[%clk 0:02:27]}  Nd4 {[%clk 0:01:01]} 16. Qf2 {[%clk 0:02:14]}  f6 {[%clk 0:00:51]} 17. Ng4 {[%clk 0:02:08]}  Qxe7 {[%clk 0:00:16]} 18. Re1 {[%clk 0:02:04]}  Ne6 {[%clk 0:00:16]} 19. f5 {[%clk 0:02:03]}  gxf5 {[%clk 0:00:12]} 20. Qxf5 {[%clk 0:02:02]} 1-0


[Site "https://www.chess.com"]

[Event "Titled Tuesday Blitz December 06 Early 2022"]
[White "Chernov, Mikhail"]
[Black "Martinez Reyes, Pedro Ramon"]
[WhiteFideId "24143170"]
[BlackFideId "3901807"]
[WhiteElo "2113"]
[BlackElo "2354"]
[Result "1-0"]
[Round "08"]
[TimeControl "180+1"]
[Date "2022.12.07"]
[WhiteClock "0:00:08"]
[BlackClock "0:00:22"]

1. e4 {[%clk 0:03:00]}  Nf6 {[%clk 0:02:59]} 2. e5 {[%clk 0:03:01]}  Ng8 {[%clk 0:02:58]} 3. d4 {[%clk 0:03:02]}  d6 {[%clk 0:02:59]} 4. f4 {[%clk 0:03:02]}  dxe5 {[%clk 0:02:56]} 5. fxe5 {[%clk 0:03:03]}  Bf5 {[%clk 0:02:51]} 6. Nf3 {[%clk 0:03:00]}  e6 {[%clk 0:02:51]} 7. Bd3 {[%clk 0:02:58]}  Bxd3 {[%clk 0:02:49]} 8. Qxd3 {[%clk 0:02:59]}  c5 {[%clk 0:02:42]} 9. c3 {[%clk 0:02:38]}  cxd4 {[%clk 0:02:41]} 10. cxd4 {[%clk 0:02:39]}  Bb4+ {[%clk 0:02:41]} 11. Nc3 {[%clk 0:02:39]}  Nc6 {[%clk 0:02:39]} 12. O-O {[%clk 0:02:35]}  Nge7 {[%clk 0:02:32]} 13. a3 {[%clk 0:02:18]}  Ba5 {[%clk 0:02:28]} 14. Ne4 {[%clk 0:02:13]}  O-O {[%clk 0:02:09]} 15. Bg5 {[%clk 0:01:55]}  Qd5 {[%clk 0:01:57]} 16. Rad1 {[%clk 0:01:47]}  Ng6 {[%clk 0:01:46]} 17. Kh1 {[%clk 0:01:31]}  Bd8 {[%clk 0:01:22]} 18. Be3 {[%clk 0:00:58]}  Be7 {[%clk 0:01:18]} 19. Nc3 {[%clk 0:00:57]}  Qd7 {[%clk 0:01:18]} 20. Qe4 {[%clk 0:00:50]}  Rfd8 {[%clk 0:01:16]} 21. d5 {[%clk 0:00:48]}  exd5 {[%clk 0:01:15]} 22. Nxd5 {[%clk 0:00:49]}  Qe6 {[%clk 0:01:15]} 23. Nc7 {[%clk 0:00:46]}  Rxd1 {[%clk 0:01:15]} 24. Rxd1 {[%clk 0:00:47]}  Qb3 {[%clk 0:01:15]} 25. Rd3 {[%clk 0:00:38]}  Qc2 {[%clk 0:00:59]} 26. Rd8+ {[%clk 0:00:33]}  Bxd8 {[%clk 0:00:59]} 27. Qxc2 {[%clk 0:00:34]}  Bxc7 {[%clk 0:01:00]} 28. e6 {[%clk 0:00:22]}  fxe6 {[%clk 0:00:58]} 29. Qe4 {[%clk 0:00:21]}  Re8 {[%clk 0:00:57]} 30. Ng5 {[%clk 0:00:17]}  Be5 {[%clk 0:00:54]} 31. Qf3 {[%clk 0:00:13]}  Bf6 {[%clk 0:00:54]} 32. Ne4 {[%clk 0:00:14]}  Be7 {[%clk 0:00:49]} 33. g3 {[%clk 0:00:11]}  Nce5 {[%clk 0:00:49]} 34. Qe2 {[%clk 0:00:09]}  b6 {[%clk 0:00:48]} 35. Bg5 {[%clk 0:00:09]}  Bf8 {[%clk 0:00:47]} 36. b4 {[%clk 0:00:07]}  h6 {[%clk 0:00:48]} 37. Bf4 {[%clk 0:00:06]}  Nf7 {[%clk 0:00:44]} 38. Qd3 {[%clk 0:00:05]}  Ne7 {[%clk 0:00:42]} 39. Nd6 {[%clk 0:00:04]}  Nxd6 {[%clk 0:00:41]} 40. Bxd6 {[%clk 0:00:05]}  Nd5 {[%clk 0:00:41]} 41. Be5 {[%clk 0:00:04]}  Rc8 {[%clk 0:00:39]} 42. Qg6 {[%clk 0:00:04]}  Rc6 {[%clk 0:00:32]} 43. Qe8 {[%clk 0:00:04]}  Rc1+ {[%clk 0:00:31]} 44. Kg2 {[%clk 0:00:04]}  Ne7 {[%clk 0:00:32]} 45. Bd6 {[%clk 0:00:04]}  Rc2+ {[%clk 0:00:27]} 46. Kh3 {[%clk 0:00:04]}  Rc8 {[%clk 0:00:27]} 47. Qd7 {[%clk 0:00:05]}  Rc3 {[%clk 0:00:23]} 48. Qxe6+ {[%clk 0:00:04]}  Kh7 {[%clk 0:00:21]} 49. Bxe7 {[%clk 0:00:04]}  Bxe7 {[%clk 0:00:22]} 50. Qxe7 {[%clk 0:00:05]}  Rxa3 {[%clk 0:00:22]} 51. Qe4+ {[%clk 0:00:05]}  Kh8 {[%clk 0:00:22]} 52. Qe8+ {[%clk 0:00:05]}  Kh7 {[%clk 0:00:22]} 53. b5 {[%clk 0:00:05]}  Ra5 {[%clk 0:00:22]} 54. Qd7 {[%clk 0:00:05]}  Kh8 {[%clk 0:00:18]} 55. Kg2 {[%clk 0:00:05]}  Ra3 {[%clk 0:00:18]} 56. h4 {[%clk 0:00:05]}  Ra5 {[%clk 0:00:18]} 57. Kh3 {[%clk 0:00:05]}  Ra4 {[%clk 0:00:18]} 58. g4 {[%clk 0:00:05]}  Ra3+ {[%clk 0:00:18]} 59. Kg2 {[%clk 0:00:05]}  Ra2+ {[%clk 0:00:19]} 60. Kf3 {[%clk 0:00:06]}  Ra4 {[%clk 0:00:19]} 61. h5 {[%clk 0:00:05]}  Kg8 {[%clk 0:00:19]} 62. Qe8+ {[%clk 0:00:05]}  Kh7 {[%clk 0:00:19]} 63. Qg6+ {[%clk 0:00:05]}  Kh8 {[%clk 0:00:20]} 64. g5 {[%clk 0:00:06]}  hxg5 {[%clk 0:00:21]} 65. h6 {[%clk 0:00:06]}  gxh6 {[%clk 0:00:22]} 66. Qxh6+ {[%clk 0:00:06]}  Kg8 {[%clk 0:00:22]} 67. Qxg5+ {[%clk 0:00:07]}  Kf8 {[%clk 0:00:22]} 68. Qf6+ {[%clk 0:00:07]}  Ke8 {[%clk 0:00:22]} 69. Qe6+ {[%clk 0:00:07]}  Kd8 {[%clk 0:00:21]} 70. Qd6+ {[%clk 0:00:07]}  Kc8 {[%clk 0:00:21]} 71. Ke3 {[%clk 0:00:08]}  Rc4 {[%clk 0:00:20]} 72. Kd3 {[%clk 0:00:07]}  Rc5 {[%clk 0:00:20]} 73. Kd4 {[%clk 0:00:06]}  Kb7 {[%clk 0:00:20]} 74. Qd7+ {[%clk 0:00:05]}  Kb8 {[%clk 0:00:19]} 75. Ke4 {[%clk 0:00:04]}  Ka8 {[%clk 0:00:18]} 76. Qd8+ {[%clk 0:00:02]}  Kb7 {[%clk 0:00:18]} 77. Qd7+ {[%clk 0:00:02]}  Rc7 {[%clk 0:00:19]} 78. Qd5+ {[%clk 0:00:03]}  Kb8 {[%clk 0:00:19]} 79. Kd4 {[%clk 0:00:03]}  Kc8 {[%clk 0:00:19]} 80. Qg8+ {[%clk 0:00:03]}  Kb7 {[%clk 0:00:20]} 81. Qe8 {[%clk 0:00:02]}  Rc5 {[%clk 0:00:20]} 82. Qd7+ {[%clk 0:00:03]}  Kb8 {[%clk 0:00:20]} 83. Qd8+ {[%clk 0:00:03]}  Rc8 {[%clk 0:00:20]} 84. Qf6 {[%clk 0:00:04]}  Rc5 {[%clk 0:00:20]} 85. Kd3 {[%clk 0:00:04]}  Kb7 {[%clk 0:00:20]} 86. Qe7+ {[%clk 0:00:04]}  Kb8 {[%clk 0:00:20]} 87. Qd8+ {[%clk 0:00:04]}  Kb7 {[%clk 0:00:21]} 88. Qd7+ {[%clk 0:00:04]}  Kb8 {[%clk 0:00:21]} 89. Qd8+ {[%clk 0:00:05]}  Rc8 {[%clk 0:00:21]} 90. Qd7 {[%clk 0:00:05]}  Rc7 {[%clk 0:00:22]} 91. Qd8+ {[%clk 0:00:05]}  Kb7 {[%clk 0:00:22]} 92. Qd5+ {[%clk 0:00:05]}  Kc8 {[%clk 0:00:22]} 93. Qa8+ {[%clk 0:00:06]}  Kd7 {[%clk 0:00:22]} 94. Kd4 {[%clk 0:00:06]}  Ke7 {[%clk 0:00:22]} 95. Ke5 {[%clk 0:00:05]}  Rc5+ {[%clk 0:00:22]} 96. Kd4 {[%clk 0:00:06]}  Rxb5 {[%clk 0:00:23]} 97. Qxa7+ {[%clk 0:00:06]}  Kd6 {[%clk 0:00:22]} 98. Qb8+ {[%clk 0:00:06]}  Kc6 {[%clk 0:00:23]} 99. Qc8+ {[%clk 0:00:06]}  Kd6 {[%clk 0:00:23]} 100. Qd8+ {[%clk 0:00:07]}  Kc6 {[%clk 0:00:22]} 101. Qe8+ {[%clk 0:00:07]}  Kb7 {[%clk 0:00:22]} 102. Qxb5 {[%clk 0:00:08]} 1-0


[Site "https://www.chess.com"]

[Event "Titled Tuesday Blitz December 06 Early 2022"]
[White "Chigaev, Maksim"]
[Black "Manon-og, Ramon Jr."]
[WhiteFideId "4108116"]
[BlackFideId "5200776"]
[WhiteElo "2542"]
[BlackElo "2371"]
[Result "1-0"]
[Round "08"]
[TimeControl "180+1"]
[Date "2022.12.07"]
[WhiteClock "0:02:38"]
[BlackClock "0:01:42"]

1. e4 {[%clk 0:03:00]}  c5 {[%clk 0:02:58]} 2. Nf3 {[%clk 0:03:00]}  d6 {[%clk 0:02:58]} 3. d4 {[%clk 0:03:00]}  cxd4 {[%clk 0:02:58]} 4. Nxd4 {[%clk 0:03:01]}  Nf6 {[%clk 0:02:59]} 5. Nc3 {[%clk 0:03:01]}  a6 {[%clk 0:02:59]} 6. Be3 {[%clk 0:03:00]}  e5 {[%clk 0:02:59]} 7. Nf3 {[%clk 0:02:56]}  Be7 {[%clk 0:02:54]} 8. h3 {[%clk 0:02:55]}  O-O {[%clk 0:02:53]} 9. g4 {[%clk 0:02:55]}  Be6 {[%clk 0:02:53]} 10. g5 {[%clk 0:02:55]}  Nfd7 {[%clk 0:02:43]} 11. Nd5 {[%clk 0:02:55]}  Nc6 {[%clk 0:02:39]} 12. h4 {[%clk 0:02:50]}  f5 {[%clk 0:02:33]} 13. gxf6 {[%clk 0:02:44]}  Nxf6 {[%clk 0:02:33]} 14. Ng5 {[%clk 0:02:44]}  Bg4 {[%clk 0:02:15]} 15. Nxf6+ {[%clk 0:02:42]}  gxf6 {[%clk 0:02:11]} 16. Qxg4 {[%clk 0:02:41]}  fxg5 {[%clk 0:02:11]} 17. hxg5 {[%clk 0:02:41]}  Qe8 {[%clk 0:01:54]} 18. Bc4+ {[%clk 0:02:39]}  Kg7 {[%clk 0:01:46]} 19. Rxh7+ {[%clk 0:02:39]}  Kxh7 {[%clk 0:01:44]} 20. Qh3+ {[%clk 0:02:38]}  Kg7 {[%clk 0:01:42]} 21. Qh6# {[%clk 0:02:38]} 1-0


[Site "https://www.chess.com"]

[Event "Titled Tuesday Blitz December 06 Early 2022"]
[White "Czopor, Maciej"]
[Black "Ismayil, Malak"]
[WhiteFideId "21805431"]
[BlackFideId "13412604"]
[WhiteElo "2324"]
[BlackElo "1880"]
[Result "0-1"]
[Round "08"]
[TimeControl "180+1"]
[Date "2022.12.07"]
[WhiteClock "0:00:01"]
[BlackClock "0:00:03"]

1. c4 {[%clk 0:03:00]}  e5 {[%clk 0:02:59]} 2. Nc3 {[%clk 0:03:00]}  Nf6 {[%clk 0:02:58]} 3. e3 {[%clk 0:03:00]}  d5 {[%clk 0:02:59]} 4. cxd5 {[%clk 0:02:59]}  Nxd5 {[%clk 0:03:00]} 5. Qc2 {[%clk 0:03:00]}  Nxc3 {[%clk 0:02:57]} 6. bxc3 {[%clk 0:02:57]}  Be7 {[%clk 0:02:56]} 7. Nf3 {[%clk 0:02:57]}  O-O {[%clk 0:02:57]} 8. Nxe5 {[%clk 0:02:57]}  c6 {[%clk 0:02:57]} 9. d4 {[%clk 0:02:56]}  Be6 {[%clk 0:02:57]} 10. Bd3 {[%clk 0:02:56]}  h6 {[%clk 0:02:56]} 11. O-O {[%clk 0:02:56]}  Nd7 {[%clk 0:02:56]} 12. Nxd7 {[%clk 0:02:56]}  Qxd7 {[%clk 0:02:57]} 13. Bb2 {[%clk 0:02:56]}  Rac8 {[%clk 0:02:54]} 14. e4 {[%clk 0:02:54]}  f5 {[%clk 0:02:44]} 15. e5 {[%clk 0:02:48]}  f4 {[%clk 0:02:41]} 16. c4 {[%clk 0:02:40]}  f3 {[%clk 0:02:31]} 17. g3 {[%clk 0:02:41]}  Kh8 {[%clk 0:02:18]} 18. Rfe1 {[%clk 0:02:40]}  Bb4 {[%clk 0:01:58]} 19. Re3 {[%clk 0:02:36]}  Ba5 {[%clk 0:01:58]} 20. Rd1 {[%clk 0:02:30]}  Bb6 {[%clk 0:01:57]} 21. Be4 {[%clk 0:02:20]}  Bg4 {[%clk 0:01:56]} 22. Qd3 {[%clk 0:01:53]}  Qf7 {[%clk 0:01:55]} 23. h3 {[%clk 0:01:48]}  Bxh3 {[%clk 0:01:33]} 24. Bxf3 {[%clk 0:01:39]}  Be6 {[%clk 0:01:24]} 25. Ba3 {[%clk 0:01:24]}  Bxc4 {[%clk 0:01:18]} 26. Qc3 {[%clk 0:01:11]}  Rfd8 {[%clk 0:01:10]} 27. Bd6 {[%clk 0:01:10]}  Bxa2 {[%clk 0:01:03]} 28. Bg2 {[%clk 0:01:11]}  Bd5 {[%clk 0:01:01]} 29. Bh3 {[%clk 0:01:06]}  Be6 {[%clk 0:00:59]} 30. Rf3 {[%clk 0:01:03]}  Qd7 {[%clk 0:00:49]} 31. Bf1 {[%clk 0:01:00]}  Bg4 {[%clk 0:00:48]} 32. Re1 {[%clk 0:00:41]}  Bc7 {[%clk 0:00:04]} 33. Rf4 {[%clk 0:00:27]}  Bxd6 {[%clk 0:00:03]} 34. exd6 {[%clk 0:00:28]}  Be6 {[%clk 0:00:02]} 35. d5 {[%clk 0:00:04]}  cxd5 {[%clk 0:00:02]} 36. Qe5 {[%clk 0:00:05]}  Bg8 {[%clk 0:00:01]} 37. Rh4 {[%clk 0:00:04]}  Qxd6 {[%clk 0:00:01]} 38. Qd4 {[%clk 0:00:03]}  Qg6 {[%clk 0:00:01]} 39. Bd3 {[%clk 0:00:03]}  Qf6 {[%clk 0:00:01]} 40. Qxf6 {[%clk 0:00:03]}  gxf6 {[%clk 0:00:02]} 41. Rxh6+ {[%clk 0:00:03]}  Kg7 {[%clk 0:00:03]} 42. Rh4 {[%clk 0:00:02]}  Kf7 {[%clk 0:00:02]} 43. Rg4 {[%clk 0:00:01]}  Rc3 {[%clk 0:00:02]} 44. Bg6+ {[%clk 0:00:01]}  Kf8 {[%clk 0:00:03]} 45. Bf5 {[%clk 0:00:01]}  Rc7 {[%clk 0:00:02]} 46. Kg2 {[%clk 0:00:01]}  Rg7 {[%clk 0:00:02]} 47. Rd4 {[%clk 0:00:02]}  Re7 {[%clk 0:00:02]} 48. Rc1 {[%clk 0:00:02]}  Bf7 {[%clk 0:00:02]} 49. Rc5 {[%clk 0:00:02]}  b6 {[%clk 0:00:02]} 50. Rc6 {[%clk 0:00:03]}  Be8 {[%clk 0:00:01]} 51. Rxf6+ {[%clk 0:00:03]}  Rf7 {[%clk 0:00:02]} 52. Rxf7+ {[%clk 0:00:03]}  Bxf7 {[%clk 0:00:03]} 53. g4 {[%clk 0:00:03]}  Ke7 {[%clk 0:00:03]} 54. g5 {[%clk 0:00:03]}  Kd6 {[%clk 0:00:03]} 55. g6 {[%clk 0:00:02]}  Ke5 {[%clk 0:00:03]} 56. Rg4 {[%clk 0:00:01]}  Kxf5 {[%clk 0:00:03]} 0-1


[Site "https://www.chess.com"]

[Event "Titled Tuesday Blitz December 06 Early 2022"]
[White "Estrada Nieto, Julian"]
[Black "Kyaw Lay Htaik"]
[WhiteFideId "5101018"]
[BlackFideId "13002007"]
[WhiteElo "2195"]
[BlackElo "2261"]
[Result "1-0"]
[Round "08"]
[TimeControl "180+1"]
[Date "2022.12.07"]
[WhiteClock "0:00:42"]
[BlackClock "0:00:04"]

1. e4 {[%clk 0:03:00]}  c5 {[%clk 0:02:59]} 2. Nf3 {[%clk 0:03:01]}  Nc6 {[%clk 0:02:57]} 3. Bb5 {[%clk 0:03:01]}  g6 {[%clk 0:02:57]} 4. Bxc6 {[%clk 0:03:01]}  bxc6 {[%clk 0:02:57]} 5. O-O {[%clk 0:03:00]}  Bg7 {[%clk 0:02:57]} 6. Re1 {[%clk 0:03:00]}  d6 {[%clk 0:02:54]} 7. c3 {[%clk 0:03:00]}  Nh6 {[%clk 0:02:54]} 8. d4 {[%clk 0:02:59]}  cxd4 {[%clk 0:02:54]} 9. cxd4 {[%clk 0:02:59]}  O-O {[%clk 0:02:51]} 10. h3 {[%clk 0:02:59]}  f6 {[%clk 0:02:43]} 11. Nc3 {[%clk 0:02:55]}  Rb8 {[%clk 0:02:38]} 12. b3 {[%clk 0:02:54]}  Nf7 {[%clk 0:02:33]} 13. Qc2 {[%clk 0:02:50]}  Bd7 {[%clk 0:02:27]} 14. Be3 {[%clk 0:02:49]}  Qa5 {[%clk 0:02:26]} 15. Rad1 {[%clk 0:02:46]}  Rfc8 {[%clk 0:02:21]} 16. Nd2 {[%clk 0:02:39]}  Be6 {[%clk 0:02:08]} 17. Qd3 {[%clk 0:02:31]}  Bh6 {[%clk 0:01:47]} 18. Rc1 {[%clk 0:02:24]}  Bxe3 {[%clk 0:01:46]} 19. Qxe3 {[%clk 0:02:24]}  Rb4 {[%clk 0:01:39]} 20. Nf3 {[%clk 0:02:18]}  Kg7 {[%clk 0:01:27]} 21. e5 {[%clk 0:02:15]}  dxe5 {[%clk 0:00:55]} 22. dxe5 {[%clk 0:02:14]}  f5 {[%clk 0:00:44]} 23. Nd4 {[%clk 0:02:03]}  Nd8 {[%clk 0:00:27]} 24. Na4 {[%clk 0:01:50]}  Bd5 {[%clk 0:00:20]} 25. e6 {[%clk 0:01:41]}  Qc7 {[%clk 0:00:20]} 26. Qc3 {[%clk 0:01:34]}  Rxd4 {[%clk 0:00:15]} 27. Qxd4+ {[%clk 0:01:34]}  Kg8 {[%clk 0:00:16]} 28. Nc5 {[%clk 0:01:32]}  Qd6 {[%clk 0:00:15]} 29. Re5 {[%clk 0:01:19]}  a5 {[%clk 0:00:09]} 30. f4 {[%clk 0:01:13]}  Rb8 {[%clk 0:00:07]} 31. Nd3 {[%clk 0:01:02]}  Nxe6 {[%clk 0:00:06]} 32. Qe3 {[%clk 0:00:43]}  Kf7 {[%clk 0:00:04]} 33. Re1 {[%clk 0:00:42]} 1-0


[Site "https://www.chess.com"]

[Event "Titled Tuesday Blitz December 06 Early 2022"]
[White "Gabdrakhmanov, Azat"]
[Black "Daneshvar, Bardiya"]
[WhiteFideId "34189197"]
[BlackFideId "12576468"]
[WhiteElo "2254"]
[BlackElo "2429"]
[Result "0-1"]
[Round "08"]
[TimeControl "180+1"]
[Date "2022.12.06"]
[WhiteClock "0:00:20"]
[BlackClock "0:01:52"]

1. e4 {[%clk 0:03:00]}  Nf6 {[%clk 0:02:59]} 2. e5 {[%clk 0:03:00]}  Nd5 {[%clk 0:02:59]} 3. d4 {[%clk 0:03:01]}  d6 {[%clk 0:03:00]} 4. exd6 {[%clk 0:03:02]}  cxd6 {[%clk 0:02:59]} 5. Nf3 {[%clk 0:03:02]}  g6 {[%clk 0:02:58]} 6. c4 {[%clk 0:03:02]}  Nf6 {[%clk 0:02:57]} 7. Nc3 {[%clk 0:03:02]}  Bg7 {[%clk 0:02:58]} 8. Be2 {[%clk 0:03:03]}  O-O {[%clk 0:02:58]} 9. O-O {[%clk 0:03:03]}  d5 {[%clk 0:02:56]} 10. c5 {[%clk 0:03:02]}  Nc6 {[%clk 0:02:57]} 11. Re1 {[%clk 0:03:00]}  Bg4 {[%clk 0:02:56]} 12. h3 {[%clk 0:02:58]}  Bxf3 {[%clk 0:02:54]} 13. Bxf3 {[%clk 0:02:59]}  e6 {[%clk 0:02:55]} 14. Bf4 {[%clk 0:02:58]}  Nd7 {[%clk 0:02:52]} 15. Be3 {[%clk 0:02:48]}  b6 {[%clk 0:02:52]} 16. Rc1 {[%clk 0:02:41]}  bxc5 {[%clk 0:02:51]} 17. dxc5 {[%clk 0:02:42]}  Nde5 {[%clk 0:02:52]} 18. Bf4 {[%clk 0:02:18]}  Nxf3+ {[%clk 0:02:48]} 19. Qxf3 {[%clk 0:02:17]}  Qa5 {[%clk 0:02:47]} 20. Bd6 {[%clk 0:02:09]}  Rfd8 {[%clk 0:02:44]} 21. a3 {[%clk 0:01:35]}  Nd4 {[%clk 0:02:42]} 22. Qd1 {[%clk 0:01:28]}  Nf5 {[%clk 0:02:41]} 23. Bg3 {[%clk 0:01:13]}  Qxc5 {[%clk 0:02:39]} 24. b4 {[%clk 0:01:13]}  Qe7 {[%clk 0:02:35]} 25. Nb5 {[%clk 0:01:13]}  Nxg3 {[%clk 0:02:34]} 26. fxg3 {[%clk 0:01:11]}  a6 {[%clk 0:02:34]} 27. Nc3 {[%clk 0:00:52]}  a5 {[%clk 0:02:31]} 28. b5 {[%clk 0:00:37]}  Qxa3 {[%clk 0:02:30]} 29. Ne2 {[%clk 0:00:38]}  Rab8 {[%clk 0:02:30]} 30. Rb1 {[%clk 0:00:37]}  Qc5+ {[%clk 0:02:29]} 31. Kh2 {[%clk 0:00:37]}  Rxb5 {[%clk 0:02:29]} 32. Qa4 {[%clk 0:00:36]}  Rxb1 {[%clk 0:02:28]} 33. Rxb1 {[%clk 0:00:37]}  Be5 {[%clk 0:02:27]} 34. Nf4 {[%clk 0:00:36]}  Bxf4 {[%clk 0:02:23]} 35. Qxf4 {[%clk 0:00:34]}  d4 {[%clk 0:02:23]} 36. Rb7 {[%clk 0:00:33]}  Rf8 {[%clk 0:02:23]} 37. Rd7 {[%clk 0:00:31]}  e5 {[%clk 0:02:19]} 38. Qf6 {[%clk 0:00:31]}  a4 {[%clk 0:02:13]} 39. h4 {[%clk 0:00:31]}  a3 {[%clk 0:02:12]} 40. h5 {[%clk 0:00:31]}  Qc1 {[%clk 0:02:13]} 41. Ra7 {[%clk 0:00:21]}  d3 {[%clk 0:02:08]} 42. Qxe5 {[%clk 0:00:20]}  d2 {[%clk 0:01:52]} 43. h6 {[%clk 0:00:20]}  Qb2 {[%clk 0:01:52]} 0-1


[Site "https://www.chess.com"]